[Event "23rd Hoogeveen Open 2019"]
[Site "Hoogeveen"]
[Date "2019.10.19"]
[Round "1.23"]
[White "Barthel, Ansgar"]
[Black "De Boer, Eelke"]
[Result "0-1"]
[ECO "B93"]
[WhiteElo "2037"]
[BlackElo "2323"]
[Annotator "NA"]
[PlyCount "84"]
[EventDate "2019.10.19"]
[EventType "swiss"]
[EventCountry "NED"]
[SourceTitle "playchess.com"]
[Source "ChessBase"]
[SourceQuality "1"]
[TimeControl "40/5400+30:1800+30"]

1. e4 {[%emt 0:00:00]} c5 {[%emt 0:00:00]} 2. Nf3 {[%emt 0:00:00]} d6 {[%emt 0:00:00]} 3. d4 {[%emt 0:00:00]} cxd4 {[%emt 0:00:00]} 4. Nxd4 {[%emt 0:00:00]} Nf6 {[%emt 0:00:00]} 5. Nc3 {[%emt 0:00:00]} a6 {[%emt 0:00:00]} 6. f4 {[%emt 0:01:12]} Qc7 {[%emt 0:00:23]} 7. Bd3 {[%emt 0:01:38]} Nc6 {[%emt 0:01:24]} 8. Be3 {[%emt 0:03:36]} g6 {[%emt 0:05:43]} 9. Nf3 {[%emt 0:20:21]} Bg7 {[%emt 0:01:37]} 10. Qe2 {[%emt 0:00:49]} O-O {[%emt 0:03:17]} 11. O-O {[%emt 0:04:09]} Nb4 {[%emt 0:07:37]} 12. Kh1 {[%emt 0:01:27]} b5 {[%emt 0:02:36]} 13. a3 {[%emt 0:01:04]} Nxd3 {[%emt 0:00:14]} 14. cxd3 {[%emt 0:00:11]} Bd7 {[%emt 0:02:43]} 15. e5 {[%emt 0:07:35]} dxe5 {[%emt 0:08:06]} 16. fxe5 {[%emt 0:00:15]} Ng4 {[%emt 0:00:24]} 17. Nd5 {[%emt 0:06:40]} Qd8 {[%emt 0:00:24]} 18. Bc5 {[%emt 0:09:42]} Re8 {[%emt 0:01:25]} 19. Nb6 {[%emt 0:02:59]} Rb8 {[%emt 0:01:29]} 20. Nxd7 {[%emt 0:00:45]} Qxd7 {[%emt 0:00:06]} 21. d4 {[%emt 0:06:15]} Qd5 {[%emt 0:05:02]} 22. a4 {[%emt 0:14:59]} f6 {[%emt 0:08:11]} 23. axb5 {[%emt 0:02:21]} axb5 {[%emt 0:00:07]} 24. e6 {[%emt 0:00:50]} Bh6 {[%emt 0:11:05]} 25. Ra7 {[%emt 0:01:46]} Ne3 {[%emt 0:01:05]} 26. Re1 {[%emt 0:01:18]} Rb7 {[%emt 0:00:21]} 27. Rxb7 {[%emt 0:00:27]} Qxb7 {[%emt 0:00:06]} 28. Qd3 {[%emt 0:01:44]} Nd5 {[%emt 0:05:59]} 29. Qe4 {[%emt 0:07:46]} Qc6 {[%emt 0:01:11]} 30. Ra1 {[%emt 0:01:52]} Ra8 {[%emt 0:01:01]} 31. Ra3 {[%emt 0:01:53]} f5 {[%emt 0:12:03]} 32. Qh4 {[%emt 0:00:08]} Rxa3 {[%emt 0:07:26]} 33. bxa3 {[%emt 0:00:04]} Be3 {[%emt 0:00:25]} 34. Qg3 {[%emt 0:02:05]} f4 {[%emt 0:04:07]} 35. Qh3 {[%emt 0:00:03]} Nf6 {[%emt 0:01:07]} 36. Ng5 {[%emt 0:00:35]} Qd5 {[%emt 0:01:02]} 37. Nf3 {[%emt 0:01:00]} Qe4 {[%emt 0:01:13]} 38. g4 {[%emt 0:00:41]} Qb1+ {[%emt 0:00:24]} 39. Kg2 {[%emt 0:00:05]} Qc2+ {[%emt 0:02:05]} 40. Kh1 {[%emt 0:00:19]} Qd1+ {[%emt 0:00:06]} 41. Kg2 {[%emt 0:30:14]} Qe2+ {[%emt 0:30:08]} 42. Kh1 {[%emt 0:00:07]} Ne4 {[%emt 0:00:19]} 0-1

[Event "23rd Hoogeveen Open 2019"]
[Site "Hoogeveen"]
[Date "2019.10.19"]
[Round "1.24"]
[White "Wiersma, Eelke"]
[Black "Emans, Job"]
[Result "1/2-1/2"]
[ECO "C90"]
[WhiteElo "2321"]
[BlackElo "2028"]
[Annotator "NA"]
[PlyCount "45"]
[EventDate "2019.10.19"]
[EventType "swiss"]
[EventCountry "NED"]
[SourceTitle "playchess.com"]
[Source "ChessBase"]
[SourceQuality "1"]
[TimeControl "40/5400+30:1800+30"]

1. e4 {[%emt 0:00:00]} e5 {[%emt 0:00:00]} 2. Nf3 {[%emt 0:00:00]} Nc6 {[%emt 0:00:00]} 3. Bb5 {[%emt 0:00:00]} a6 {[%emt 0:00:21]} 4. Ba4 {[%emt 0:00:09]} Nf6 {[%emt 0:00:20]} 5. O-O {[%emt 0:00:12]} b5 {[%emt 0:01:53]} 6. Bb3 {[%emt 0:00:11]} d6 {[%emt 0:00:15]} 7. c3 {[%emt 0:05:17]} Be7 {[%emt 0:02:32]} 8. a4 {[%emt 0:06:51]} Bb7 {[%emt 0:15:17]} 9. Re1 {[%emt 0:02:26]} O-O {[%emt 0:00:34]} 10. d4 {[%emt 0:00:28]} Re8 {[%emt 0:05:32]} 11. Nbd2 {[%emt 0:05:35]} Bf8 {[%emt 0:10:29]} 12. d5 {[%emt 0:09:43]} Ne7 {[%emt 0:09:16]} 13. c4 {[%emt 0:05:42]} c6 {[%emt 0:14:57]} 14. dxc6 {[%emt 0:08:15]} Nxc6 {[%emt 0:04:28]} 15. axb5 {[%emt 0:03:03]} axb5 {[%emt 0:00:07]} 16. Rxa8 {[%emt 0:00:08]} Qxa8 {[%emt 0:00:06]} 17. cxb5 {[%emt 0:02:08]} Nb4 {[%emt 0:02:03]} 18. Bc4 {[%emt 0:16:37]} Nxe4 {[%emt 0:10:07]} 19. Bxf7+ {[%emt 0:06:29]} Kxf7 {[%emt 0:00:27]} 20. Nxe4 {[%emt 0:00:07]} Kg8 {[%emt 0:05:43]} 21. Nxd6 {[%emt 0:08:00]} Rd8 {[%emt 0:01:47]} 22. Qb3+ {[%emt 0:00:50]} Bd5 {[%emt 0:00:06]} 23. Qxb4 {[%emt 0:00:09]} 1/2-1/2

[Event "23rd Hoogeveen Open 2019"]
[Site "Hoogeveen"]
[Date "2019.10.19"]
[Round "1.25"]
[White "Dev, Shah"]
[Black "Elgersma, Onno"]
[Result "0-1"]
[ECO "D35"]
[WhiteElo "2025"]
[BlackElo "2306"]
[Annotator "NA"]
[PlyCount "72"]
[EventDate "2019.10.19"]
[EventType "swiss"]
[EventCountry "NED"]
[SourceTitle "playchess.com"]
[Source "ChessBase"]
[SourceQuality "1"]
[TimeControl "40/5400+30:1800+30"]

1. d4 {[%emt 0:00:22]} d5 {[%emt 0:00:00]} 2. c4 {[%emt 0:00:21]} e6 {[%emt 0:00:00]} 3. Nc3 {[%emt 0:00:17]} Nf6 {[%emt 0:01:18]} 4. cxd5 {[%emt 0:00:30]} exd5 {[%emt 0:00:05]} 5. Bg5 {[%emt 0:00:13]} c6 {[%emt 0:00:04]} 6. e3 {[%emt 0:00:17]} Bd6 {[%emt 0:00:24]} 7. Bd3 {[%emt 0:01:15]} O-O {[%emt 0:01:49]} 8. Nge2 {[%emt 0:02:01]} Re8 {[%emt 0:00:14]} 9. Qc2 {[%emt 0:02:16]} h6 {[%emt 0:00:05]} 10. Bh4 {[%emt 0:13:19]} a5 {[%emt 0:00:46]} 11. Bg3 {[%emt 0:03:43]} Na6 {[%emt 0:05:45]} 12. a3 {[%emt 0:01:31]} Nc7 {[%emt 0:02:48]} 13. O-O {[%emt 0:02:01]} Ne6 {[%emt 0:03:57]} 14. f3 {[%emt 0:13:38]} Qc7 {[%emt 0:17:08]} 15. Rae1 {[%emt 0:08:14]} Bd7 {[%emt 0:12:14]} 16. Bxd6 {[%emt 0:08:48]} Qxd6 {[%emt 0:00:05]} 17. Ng3 {[%emt 0:00:19]} c5 {[%emt 0:08:00]} 18. dxc5 {[%emt 0:15:59]} Nxc5 {[%emt 0:06:09]} 19. Bb5 {[%emt 0:05:16]} Qb6 {[%emt 0:08:35]} 20. Bxd7 {[%emt 0:01:45]} Ncxd7 {[%emt 0:00:37]} 21. Nf5 {[%emt 0:03:31]} Ne5 {[%emt 0:02:26]} 22. Na4 {[%emt 0:01:23]} Qd8 {[%emt 0:07:50]} 23. Qb3 {[%emt 0:02:54]} b5 {[%emt 0:05:12]} 24. Nc3 {[%emt 0:06:26]} b4 {[%emt 0:01:47]} 25. axb4 {[%emt 0:03:00]} axb4 {[%emt 0:00:02]} 26. Nb5 {[%emt 0:00:32]} Qb6 {[%emt 0:04:33]} 27. Nbd4 {[%emt 0:01:51]} Nc4 {[%emt 0:00:37]} 28. Rd1 {[%emt 0:01:13]} Re5 {[%emt 0:05:49]} 29. Rfe1 {[%emt 0:00:59]} Rae8 {[%emt 0:00:26]} 30. Kf2 {[%emt 0:00:33]} g6 {[%emt 0:00:43]} 31. Nxh6+ {[%emt 0:00:20]} Kg7 {[%emt 0:00:09]} 32. Ng4 {[%emt 0:00:41]} Nxg4+ {[%emt 0:00:26]} 33. fxg4 {[%emt 0:00:03]} Nxe3 {[%emt 0:01:06]} 34. Rxe3 {[%emt 0:00:32]} Rxe3 {[%emt 0:00:09]} 35. Qxd5 {[%emt 0:00:06]} Re2+ {[%emt 0:03:28]} 36. Kf1 {[%emt 0:00:52]} Qf6+ {[%emt 0:00:25]} 0-1

[Event "23rd Hoogeveen Open 2019"]
[Site "Hoogeveen"]
[Date "2019.10.19"]
[Round "1.26"]
[White "Bhambure, Shantanu"]
[Black "Garcia Morales, Ivette Ale"]
[Result "1-0"]
[ECO "E14"]
[WhiteElo "2291"]
[BlackElo "2013"]
[Annotator "NA"]
[PlyCount "73"]
[EventDate "2019.10.19"]
[EventType "swiss"]
[EventCountry "NED"]
[SourceTitle "playchess.com"]
[Source "ChessBase"]
[SourceQuality "1"]
[TimeControl "40/5400+30:1800+30"]

1. d4 {[%emt 0:00:00]} Nf6 {[%emt 0:00:00]} 2. c4 {[%emt 0:00:00]} e6 {[%emt 0:00:00]} 3. Nf3 {[%emt 0:00:00]} Bb4+ {[%emt 0:00:00]} 4. Nbd2 {[%emt 0:00:01]} b6 {[%emt 0:00:04]} 5. a3 {[%emt 0:00:20]} Bxd2+ {[%emt 0:00:24]} 6. Qxd2 {[%emt 0:00:07]} Bb7 {[%emt 0:00:05]} 7. e3 {[%emt 0:00:25]} d6 {[%emt 0:01:13]} 8. Be2 {[%emt 0:01:01]} Nbd7 {[%emt 0:00:55]} 9. O-O {[%emt 0:01:18]} O-O {[%emt 0:03:43]} 10. b4 {[%emt 0:00:57]} Ne4 {[%emt 0:01:04]} 11. Qc2 {[%emt 0:00:49]} f5 {[%emt 0:01:09]} 12. d5 {[%emt 0:01:59]} e5 {[%emt 0:00:57]} 13. Nd2 {[%emt 0:02:52]} Nxd2 {[%emt 0:16:46]} 14. Bxd2 {[%emt 0:00:42]} Qh4 {[%emt 0:10:23]} 15. f4 {[%emt 0:06:28]} e4 {[%emt 0:13:59]} 16. Bc3 {[%emt 0:11:24]} Nf6 {[%emt 0:01:19]} 17. Qd2 {[%emt 0:04:34]} Ng4 {[%emt 0:06:42]} 18. h3 {[%emt 0:02:06]} Rae8 {[%emt 0:05:43]} 19. Qd4 {[%emt 0:07:18]} Nf6 {[%emt 0:06:22]} 20. a4 {[%emt 0:04:33]} Re7 {[%emt 0:06:07]} 21. a5 {[%emt 0:10:21]} g5 {[%emt 0:12:45]} 22. Kh2 {[%emt 0:11:41]} g4 {[%emt 0:04:37]} 23. Be1 {[%emt 0:05:03]} Qh5 {[%emt 0:00:03]} 24. Ra2 {[%emt 0:07:09]} Rg7 {[%emt 0:00:36]} 25. Bd1 {[%emt 0:01:57]} Qg6 {[%emt 0:01:35]} 26. Bh4 {[%emt 0:07:15]} gxh3 {[%emt 0:04:19]} 27. g3 {[%emt 0:02:56]} Ng4+ {[%emt 0:01:01]} 28. Kxh3 {[%emt 0:00:15]} Kh8 {[%emt 0:01:03]} 29. Kg2 {[%emt 0:02:06]} Kg8 {[%emt 0:00:48]} 30. Rh1 {[%emt 0:01:35]} Bc8 {[%emt 0:00:16]} 31. axb6 {[%emt 0:01:51]} axb6 {[%emt 0:00:04]} 32. Ra8 {[%emt 0:01:49]} Bb7 {[%emt 0:01:15]} 33. Rxf8+ {[%emt 0:01:33]} Kxf8 {[%emt 0:00:04]} 34. Bg5 {[%emt 0:02:00]} h6 {[%emt 0:00:39]} 35. Bxg4 {[%emt 0:00:54]} hxg5 {[%emt 0:00:53]} 36. Bh5 {[%emt 0:01:17]} Qh7 {[%emt 0:00:36]} 37. Qf6+ {[%emt 0:00:33]} 1-0

[Event "23rd Hoogeveen Open 2019"]
[Site "Hoogeveen"]
[Date "2019.10.19"]
[Round "1.27"]
[White "Ypma, Jord"]
[Black "Grooten, Herman"]
[Result "0-1"]
[ECO "E32"]
[WhiteElo "2013"]
[BlackElo "2274"]
[Annotator "NA"]
[PlyCount "54"]
[EventDate "2019.10.19"]
[EventType "swiss"]
[EventCountry "NED"]
[SourceTitle "playchess.com"]
[Source "ChessBase"]
[SourceQuality "1"]
[TimeControl "40/5400+30:1800+30"]

1. d4 {[%emt 0:00:00]} Nf6 {[%emt 0:00:00]} 2. c4 {[%emt 0:00:07]} e6 {[%emt 0:00:00]} 3. Nc3 {[%emt 0:00:17]} Bb4 {[%emt 0:00:01]} 4. Qc2 {[%emt 0:00:22]} d6 {[%emt 0:03:10]} 5. a3 {[%emt 0:01:10]} Bxc3+ {[%emt 0:00:08]} 6. Qxc3 {[%emt 0:00:03]} Qe7 {[%emt 0:00:31]} 7. Nf3 {[%emt 0:03:43]} b6 {[%emt 0:02:47]} 8. g3 {[%emt 0:02:19]} Bb7 {[%emt 0:00:25]} 9. Bg2 {[%emt 0:00:38]} Nbd7 {[%emt 0:00:19]} 10. O-O {[%emt 0:01:05]} O-O {[%emt 0:06:03]} 11. b3 {[%emt 0:04:43]} c5 {[%emt 0:04:26]} 12. Bb2 {[%emt 0:04:58]} cxd4 {[%emt 0:03:03]} 13. Nxd4 {[%emt 0:11:33]} Bxg2 {[%emt 0:02:16]} 14. Kxg2 {[%emt 0:00:10]} Rfc8 {[%emt 0:00:26]} 15. e4 {[%emt 0:22:16]} Nxe4 {[%emt 0:21:59]} 16. Qe3 {[%emt 0:07:05]} Nef6 {[%emt 0:02:37]} 17. Rad1 {[%emt 0:02:21]} d5 {[%emt 0:09:32]} 18. cxd5 {[%emt 0:07:23]} Nxd5 {[%emt 0:01:25]} 19. Qf3 {[%emt 0:07:39]} Qf6 {[%emt 0:04:45]} 20. Qe2 {[%emt 0:04:19]} Qg6 {[%emt 0:01:27]} 21. Kg1 {[%emt 0:07:48]} Nc5 {[%emt 0:02:48]} 22. Qc4 {[%emt 0:05:59]} h5 {[%emt 0:12:31]} 23. Nb5 {[%emt 0:02:48]} Ne4 {[%emt 0:00:42]} 24. Qd3 {[%emt 0:01:48]} Nf4 {[%emt 0:08:52]} 25. Qf3 {[%emt 0:00:33]} Ng5 {[%emt 0:00:59]} 26. Qb7 {[%emt 0:00:57]} Rab8 {[%emt 0:01:14]} 27. Qe7 {[%emt 0:00:39]} Nfh3+ {[%emt 0:00:00]} 0-1

[Event "23rd Hoogeveen Open 2019"]
[Site "Hoogeveen"]
[Date "2019.10.19"]
[Round "1.28"]
[White "Van Dael, Siem"]
[Black "Hoffman, Ron"]
[Result "1-0"]
[ECO "B08"]
[WhiteElo "2273"]
[BlackElo "1991"]
[Annotator "NA"]
[PlyCount "101"]
[EventDate "2019.10.19"]
[EventType "swiss"]
[EventCountry "NED"]
[SourceTitle "playchess.com"]
[Source "ChessBase"]
[SourceQuality "1"]
[TimeControl "40/5400+30:1800+30"]

1. e4 {[%emt 0:00:00]} Nc6 {[%emt 0:06:58]} 2. Nf3 {[%emt 0:00:00]} d6 {[%emt 0:00:05]} 3. d4 {[%emt 0:00:04]} Nf6 {[%emt 0:00:11]} 4. Nc3 {[%emt 0:00:24]} g6 {[%emt 0:00:07]} 5. Be3 {[%emt 0:00:29]} Bg7 {[%emt 0:00:59]} 6. h3 {[%emt 0:00:38]} a6 {[%emt 0:01:44]} 7. a4 {[%emt 0:00:57]} O-O {[%emt 0:01:58]} 8. Qd2 {[%emt 0:02:35]} e5 {[%emt 0:01:44]} 9. Be2 {[%emt 0:18:54]} exd4 {[%emt 0:03:16]} 10. Nxd4 {[%emt 0:00:08]} Re8 {[%emt 0:00:57]} 11. Nxc6 {[%emt 0:10:21]} bxc6 {[%emt 0:00:09]} 12. Bf3 {[%emt 0:00:09]} Rb8 {[%emt 0:06:59]} 13. Rb1 {[%emt 0:04:26]} c5 {[%emt 0:01:52]} 14. O-O {[%emt 0:01:13]} Bb7 {[%emt 0:04:24]} 15. Bg5 {[%emt 0:14:44]} Qd7 {[%emt 0:20:59]} 16. Rfe1 {[%emt 0:00:41]} Bc6 {[%emt 0:00:54]} 17. Qf4 {[%emt 0:05:01]} Qe6 {[%emt 0:03:37]} 18. Qd2 {[%emt 0:10:51]} Qd7 {[%emt 0:15:51]} 19. Rbd1 {[%emt 0:11:19]} Rb4 {[%emt 0:11:11]} 20. Qd3 {[%emt 0:13:56]} Rd4 {[%emt 0:07:16]} 21. Qxa6 {[%emt 0:01:40]} Rxd1 {[%emt 0:02:23]} 22. Rxd1 {[%emt 0:00:33]} Nxe4 {[%emt 0:00:48]} 23. Bxe4 {[%emt 0:00:56]} Bxe4 {[%emt 0:00:02]} 24. Nxe4 {[%emt 0:00:49]} Rxe4 {[%emt 0:00:01]} 25. b3 {[%emt 0:00:35]} Qe8 {[%emt 0:02:38]} 26. Be3 {[%emt 0:00:48]} Rxe3 {[%emt 0:01:12]} 27. fxe3 {[%emt 0:00:06]} Qxe3+ {[%emt 0:00:01]} 28. Kh1 {[%emt 0:00:10]} Be5 {[%emt 0:03:19]} 29. Qa8+ {[%emt 0:00:05]} Kg7 {[%emt 0:00:03]} 30. Qf3 {[%emt 0:00:07]} Qxf3 {[%emt 0:02:48]} 31. gxf3 {[%emt 0:00:05]} Bc3 {[%emt 0:00:02]} 32. Rd3 {[%emt 0:00:13]} Ba5 {[%emt 0:00:02]} 33. Re3 {[%emt 0:00:28]} Kf8 {[%emt 0:01:22]} 34. Kg2 {[%emt 0:00:06]} c6 {[%emt 0:00:34]} 35. Kf1 {[%emt 0:00:28]} d5 {[%emt 0:00:24]} 36. Ke2 {[%emt 0:00:09]} h5 {[%emt 0:00:36]} 37. Kd3 {[%emt 0:00:06]} Bc7 {[%emt 0:00:22]} 38. Re2 {[%emt 0:00:21]} Ba5 {[%emt 0:00:14]} 39. c3 {[%emt 0:00:06]} h4 {[%emt 0:00:46]} 40. Rb2 {[%emt 0:01:00]} Ke7 {[%emt 0:00:11]} 41. b4 {[%emt 0:30:06]} Bb6 {[%emt 0:30:15]} 42. a5 {[%emt 0:00:12]} Ba7 {[%emt 0:00:18]} 43. bxc5 {[%emt 0:00:24]} Kd8 {[%emt 0:00:00]} 44. Kd4 {[%emt 0:00:00]} Kc8 {[%emt 0:00:00]} 45. a6 {[%emt 0:00:00]} Bb8 {[%emt 0:00:00]} 46. Ra2 {[%emt 0:00:00]} Ba7 {[%emt 0:00:00]} 47. Re2 {[%emt 0:00:00]} Kd7 {[%emt 0:00:00]} 48. Rb2 {[%emt 0:00:00]} Kc8 {[%emt 0:00:00]} 49. Rb7 {[%emt 0:00:00]} Bb8 {[%emt 0:00:00]} 50. Rxf7 {[%emt 0:00:00]} Bg3 {[%emt 0:00:00]} 51. a7 {[%emt 0:00:00]} 1-0

[Event "23rd Hoogeveen Open 2019"]
[Site "Hoogeveen"]
[Date "2019.10.19"]
[Round "1.29"]
[White "Van der Hagen, Loek"]
[Black "Gomes, Mary Ann"]
[Result "1/2-1/2"]
[ECO "B99"]
[WhiteElo "1983"]
[BlackElo "2268"]
[Annotator "NA"]
[PlyCount "149"]
[EventDate "2019.10.19"]
[EventType "swiss"]
[EventCountry "NED"]
[SourceTitle "playchess.com"]
[Source "ChessBase"]
[SourceQuality "1"]
[TimeControl "40/5400+30:1800+30"]

1. e4 {[%emt 0:00:00]} c5 {[%emt 0:00:00]} 2. Nf3 {[%emt 0:00:00]} d6 {[%emt 0:00:04]} 3. d4 {[%emt 0:00:13]} cxd4 {[%emt 0:00:07]} 4. Nxd4 {[%emt 0:00:05]} Nf6 {[%emt 0:00:06]} 5. Nc3 {[%emt 0:00:03]} a6 {[%emt 0:00:06]} 6. Bg5 {[%emt 0:00:12]} e6 {[%emt 0:00:33]} 7. f4 {[%emt 0:00:12]} Be7 {[%emt 0:00:10]} 8. Qf3 {[%emt 0:00:15]} Qc7 {[%emt 0:00:16]} 9. O-O-O {[%emt 0:00:21]} Nbd7 {[%emt 0:00:11]} 10. Bd3 {[%emt 0:00:18]} h6 {[%emt 0:00:11]} 11. Bh4 {[%emt 0:00:32]} g5 {[%emt 0:00:07]} 12. fxg5 {[%emt 0:00:12]} Ne5 {[%emt 0:00:07]} 13. Qe2 {[%emt 0:00:04]} Nfg4 {[%emt 0:00:08]} 14. Nf3 {[%emt 0:01:22]} hxg5 {[%emt 0:00:42]} 15. Bg3 {[%emt 0:00:11]} Qc5 {[%emt 0:03:06]} 16. h3 {[%emt 0:02:32]} Qe3+ {[%emt 0:03:44]} 17. Rd2 {[%emt 0:16:45]} Qxe2 {[%emt 0:02:19]} 18. Bxe2 {[%emt 0:01:02]} Nxf3 {[%emt 0:00:46]} 19. Bxf3 {[%emt 0:03:28]} Ne5 {[%emt 0:01:03]} 20. Be2 {[%emt 0:11:28]} Bd7 {[%emt 0:02:43]} 21. Rhd1 {[%emt 0:05:12]} Bc6 {[%emt 0:01:31]} 22. Kb1 {[%emt 0:02:45]} O-O-O {[%emt 0:01:38]} 23. a4 {[%emt 0:02:57]} f6 {[%emt 0:07:40]} 24. b4 {[%emt 0:02:36]} Be8 {[%emt 0:04:53]} 25. b5 {[%emt 0:04:02]} axb5 {[%emt 0:00:26]} 26. Nxb5 {[%emt 0:03:08]} Bxb5 {[%emt 0:00:16]} 27. axb5 {[%emt 0:01:01]} Kc7 {[%emt 0:00:35]} 28. c3 {[%emt 0:06:30]} Ra8 {[%emt 0:01:35]} 29. Ra2 {[%emt 0:01:07]} Rxa2 {[%emt 0:04:19]} 30. Kxa2 {[%emt 0:00:08]} Nd7 {[%emt 0:01:14]} 31. Bf2 {[%emt 0:04:05]} Rf8 {[%emt 0:04:56]} 32. Bd4 {[%emt 0:14:58]} f5 {[%emt 0:04:41]} 33. exf5 {[%emt 0:00:30]} exf5 {[%emt 0:00:36]} 34. Kb3 {[%emt 0:05:05]} Bf6 {[%emt 0:02:34]} 35. Bg1 {[%emt 0:03:28]} Be5 {[%emt 0:00:38]} 36. Kb4 {[%emt 0:02:34]} Ra8 {[%emt 0:01:28]} 37. Bf3 {[%emt 0:02:50]} Ra2 {[%emt 0:07:30]} 38. Kb3 {[%emt 0:00:08]} Ra5 {[%emt 0:00:07]} 39. Kb4 {[%emt 0:02:35]} b6 {[%emt 0:00:32]} 40. Bc6 {[%emt 0:01:34]} Nf6 {[%emt 0:01:25]} 41. Re1 {[%emt 0:07:00]} Nh5 {[%emt 0:14:45]} 42. Bd4 {[%emt 0:03:46]} Nf4 {[%emt 0:00:28]} 43. Kb3 {[%emt 0:04:49]} Nd3 {[%emt 0:02:27]} 44. Re3 {[%emt 0:01:56]} Nc5+ {[%emt 0:01:18]} 45. Kc4 {[%emt 0:10:20]} f4 {[%emt 0:01:59]} 46. Re2 {[%emt 0:02:24]} Ra4+ {[%emt 0:00:50]} 47. Kd5 {[%emt 0:00:10]} Nd3 {[%emt 0:00:41]} 48. Rd2 {[%emt 0:03:12]} Bxd4 {[%emt 0:03:45]} 49. Rxd3 {[%emt 0:00:09]} Be5 {[%emt 0:03:50]} 50. c4 {[%emt 0:01:03]} Bb2 {[%emt 0:13:31]} 51. Rd2 {[%emt 0:01:28]} Bc1 {[%emt 0:01:55]} 52. Re2 {[%emt 0:01:37]} Be3 {[%emt 0:00:07]} 53. Rc2 {[%emt 0:00:09]} Ra3 {[%emt 0:04:11]} 54. Ke6 {[%emt 0:00:37]} f3 {[%emt 0:02:17]} 55. Bxf3 {[%emt 0:00:21]} Bf4 {[%emt 0:00:17]} 56. Kf5 {[%emt 0:00:31]} Be3 {[%emt 0:00:20]} 57. Re2 {[%emt 0:00:30]} Kd7 {[%emt 0:01:07]} 58. Bd5 {[%emt 0:00:04]} Ke7 {[%emt 0:01:34]} 59. Kg6 {[%emt 0:00:43]} Kf8 {[%emt 0:03:03]} 60. Kf6 {[%emt 0:00:07]} Ke8 {[%emt 0:00:54]} 61. Ke6 {[%emt 0:00:10]} Bf4 {[%emt 0:01:05]} 62. Kf5+ {[%emt 0:00:46]} Be3 {[%emt 0:01:04]} 63. Kf6 {[%emt 0:01:49]} Kf8 {[%emt 0:01:11]} 64. Bc6 {[%emt 0:00:45]} Kg8 {[%emt 0:00:07]} 65. Ke6 {[%emt 0:00:24]} Bc5 {[%emt 0:01:26]} 66. Bd5 {[%emt 0:00:24]} Kg7 {[%emt 0:01:27]} 67. Kd7 {[%emt 0:00:25]} Re3 {[%emt 0:00:53]} 68. Ra2 {[%emt 0:00:34]} Ra3 {[%emt 0:00:16]} 69. Re2 {[%emt 0:00:45]} Re3 {[%emt 0:00:09]} 70. Rd2 {[%emt 0:00:26]} Ra3 {[%emt 0:09:14]} 71. Be6 {[%emt 0:00:54]} Kf6 {[%emt 0:01:21]} 72. Rxd6 {[%emt 0:00:32]} Ra7+ {[%emt 0:00:22]} 73. Kc6 {[%emt 0:00:16]} Ke5 {[%emt 0:00:14]} 74. Rd7 {[%emt 0:00:37]} Rxd7 {[%emt 0:00:13]} 75. Bxd7 {[%emt 0:00:05]} 1/2-1/2

[Event "23rd Hoogeveen Open 2019"]
[Site "Hoogeveen"]
[Date "2019.10.19"]
[Round "1.30"]
[White "Advait, Bagri"]
[Black "Albers, Sasa"]
[Result "1-0"]
[ECO "C10"]
[WhiteElo "2231"]
[BlackElo "1975"]
[Annotator "NA"]
[PlyCount "59"]
[EventDate "2019.10.19"]
[EventType "swiss"]
[EventCountry "NED"]
[SourceTitle "playchess.com"]
[Source "ChessBase"]
[SourceQuality "1"]
[TimeControl "40/5400+30:1800+30"]

1. e4 {[%emt 0:00:08]} c6 {[%emt 0:00:00]} 2. d4 {[%emt 0:00:17]} d5 {[%emt 0:00:00]} 3. Nc3 {[%emt 0:00:16]} dxe4 {[%emt 0:00:00]} 4. Nxe4 {[%emt 0:00:12]} Nd7 {[%emt 0:00:00]} 5. Ng5 {[%emt 0:00:48]} Ngf6 {[%emt 0:00:12]} 6. Bd3 {[%emt 0:01:00]} e6 {[%emt 0:00:28]} 7. N1f3 {[%emt 0:00:35]} Bd6 {[%emt 0:07:03]} 8. Qe2 {[%emt 0:02:51]} h6 {[%emt 0:10:29]} 9. Ne4 {[%emt 0:00:36]} Nxe4 {[%emt 0:00:18]} 10. Bxe4 {[%emt 0:03:35]} Nf6 {[%emt 0:01:28]} 11. Bd3 {[%emt 0:00:29]} O-O {[%emt 0:00:37]} 12. Bd2 {[%emt 0:04:01]} c5 {[%emt 0:02:57]} 13. dxc5 {[%emt 0:06:16]} Bxc5 {[%emt 0:00:02]} 14. O-O-O {[%emt 0:00:46]} Qc7 {[%emt 0:08:44]} 15. h3 {[%emt 0:09:16]} Bd7 {[%emt 0:04:21]} 16. g4 {[%emt 0:04:32]} Bc6 {[%emt 0:01:12]} 17. g5 {[%emt 0:06:37]} hxg5 {[%emt 0:05:36]} 18. Rhg1 {[%emt 0:09:06]} e5 {[%emt 0:14:50]} 19. Bxg5 {[%emt 0:03:41]} e4 {[%emt 0:01:43]} 20. Bxf6 {[%emt 0:06:05]} Qf4+ {[%emt 0:00:17]} 21. Nd2 {[%emt 0:00:14]} Qxf6 {[%emt 0:00:24]} 22. Nxe4 {[%emt 0:01:48]} Bxe4 {[%emt 0:06:44]} 23. Qxe4 {[%emt 0:00:45]} g6 {[%emt 0:00:21]} 24. Qd5 {[%emt 0:00:55]} Rfd8 {[%emt 0:02:32]} 25. Qxc5 {[%emt 0:00:53]} Rac8 {[%emt 0:00:07]} 26. Qe3 {[%emt 0:00:52]} Rd6 {[%emt 0:00:38]} 27. f4 {[%emt 0:00:53]} Rb6 {[%emt 0:00:21]} 28. Qe5 {[%emt 0:00:15]} Qc6 {[%emt 0:01:55]} 29. f5 {[%emt 0:00:20]} Ra6 {[%emt 0:00:25]} 30. fxg6 {[%emt 0:00:25]} 1-0